Cogmind - Beta 16.1 @@@ ROGUE MODE // 2026.04.16 @ 11:59:57 Player: Thqwib-Linux Result: Destroyed by G-34 Mercenary with Small Laser Performance ------------- Evolutions (0) 0 Regions Visited (4) 800 Robots Destroyed (32) 160 Value Destroyed (766) 766 Prototype IDs (26) 520 Alien Tech Used (0) 0 Bonus (300) 300 TOTAL SCORE: 2546 Bonus ------- Aligned with FarCom 300 Cogmind --------- Core Integrity 0/250 Matter 300/300 Energy 159/160 System Corruption 2% Temperature Cool (6) Movement Rolling (145) Ox3 Location -9/Mines Parts ------- > --- POWER (1) -------- Light Nuclear Core > --- PROPULSION (2) --- Light Treads Compact Wheel > --- UTILITY (2) ------ High-capacity Storage Unit Light Armor Plating > --- WEAPON (2) ------- Particle Gun Assault Rifle > --- INVENTORY (20) --- Ion Engine Fission Core Light Treads Wheel Wheel Heat Sink Structural Scanner Tractor Beam Small Laser Spread Laser Assault Rifle Rocket Launcher Heavy Hammer Deploy-a-Sentry Deploy-a-Sentry Deploy-a-Sentry Peak State ------------ > --- POWER ------------ Light Nuclear Core > --- PROPULSION ------- Light Treads Compact Wheel > --- UTILITY ---------- High-capacity Storage Unit Improved Targeting Computer > --- WEAPON ----------- Particle Gun Assault Rifle > --- INVENTORY -------- Ion Engine Fission Core Wheel Wheel Heat Sink Structural Scanner Light Armor Plating Tractor Beam Small Laser Spread Laser Assault Rifle Grenade Launcher Heavy Hammer Deploy-a-Sentry Deploy-a-Sentry Deploy-a-Sentry [Rating: 15] Favorites ----------- Power Light Nuclear Core Engine Light Ion Engine Power Core Light Nuclear Core Propulsion Light Treads Treads Light Treads Leg Aluminum Leg Wheel Compact Wheel Utility Large Storage Unit Device Heat Sink Storage Large Storage Unit Processor Improved Targeting Computer Protection Light Armor Plating Weapon Assault Rifle Energy Gun Particle Gun Energy Cannon Beam Cannon Ballistic Gun Assault Rifle Build | -11 -10 -10 -10 -9 ------- Run | Yrd Mat Min Exi Min Slots Evolved . | . . . . . Power . | . . . . . Propulsion . | . . . . . Utility . | . . . . . Weapon . | . . . . . Parts Attached 28 | 3 14 8 2 1 Power 7 | . 4 3 . . Engine 4 | . 2 2 . . Core 3 | . 2 1 . . Reactor . | . . . . . Propulsion 7 | 2 2 2 1 . Treads 3 | 1 . 1 1 . Leg . | . . . . . Wheel 4 | 1 2 1 . . Hover . | . . . . . Flight . | . . . . . Utility 8 | 1 5 . 1 1 Device 4 | 1 3 . . . Storage 2 | . 1 . 1 . Processor 1 | . 1 . . . Hackware . | . . . . . Protection 1 | . . . . 1 Artifact . | . . . . . Weapon 6 | . 3 3 . . Energy Gun 3 | . 2 1 . . Energy Cannon 1 | . . 1 . . Ballistic Gun 2 | . 1 1 . . Ballistic Cannon . | . . . . . Launcher . | . . . . . Special Weapon . | . . . . . Impact Weapon . | . . . . . Slashing Weapon . | . . . . . Piercing Weapon . | . . . . . Special Melee Weapon . | . . . . . Unidentified Prototypes . | . . . . . Parts Lost 9 | . 5 4 . . Power 2 | . 1 1 . . Propulsion 1 | . . 1 . . Utility 2 | . 2 . . . Weapon 4 | . 2 2 . . Highest Loss Streak 4 | . 3 4 . . To Critical Strikes . | . . . . . Average Backups 11 | 5 8 13 14 13 Power 1 | 1 1 1 1 2 Propulsion 2 | 2 2 3 2 3 Utility 3 | . 3 5 4 3 Weapon 3 | 1 1 4 5 5 Tool/Special . | . . . . . Unused Backups 24 | 8 4 . . 12 Power 5 | 1 2 . . 2 Propulsion 6 | 4 . . . 2 Utility 3 | 1 . . . 2 Weapon 10 | 2 2 . . 6 Tool/Special . | . . . . . Average Slot Usage (%) 99 | . 99 99 100 100 Engine 4 | . 2 10 . . Core 9 | . 11 3 14 14 Treads 13 | . 13 14 14 14 Wheel 14 | . 14 14 14 14 Device 4 | . 10 . . . Storage 14 | . 14 14 14 14 Processor 8 | . 3 14 14 3 Protection 1 | . . . . 10 Energy Gun 6 | . 5 2 14 14 Energy Cannon 3 | . . 11 . . Ballistic Gun 17 | . 22 14 14 14 Peak Build Rating 15 | 7 11 12 15 15 Average Rating 10 | 6 9 9 13 14 On Entrance 10 | 6 7 11 12 15 Avg Prop Armor Cover (%) 11 | 14 13 5 12 10 Naked Turns . | . . . . . Heaviest Build 53 | 13 30 30 50 53 Greatest Support 20 | 10 20 20 20 16 Greatest Overweight (x) 3 | 1 1 1 3 3 Average Overweight (x) 1 | 1 . 1 1 3 Largest Inventory Capacity 20 | 8 15 15 20 20 Average Capacity 14 | 8 13 15 17 20 Most Carried 17 | 8 15 15 17 17 Average Carried 11 | 4 8 13 15 16 Final Capacity 20 | 8 15 15 20 20 Final Carried 17 | 5 15 14 17 16 Class Distribution -------------------- 72% | Mutant 27% | Scavenger-Mutant Dominant Class ---------------- Mutant | -10/Materials Mutant | -10/Mines Scavenger-Mutant | -10/Exiles Scavenger-Mutant | -9/Mines Resources | -11 -10 -10 -10 -9 ----------- Run | Yrd Mat Min Exi Min Matter Collected 771 | 240 286 170 . 75 Remotely . | . . . . . Salvage Created 1429 | 114 864 356 . 95 Parts 57 | 6 37 12 . 2 Haulers Intercepted 2 | . 2 . . . Recyclers Shooed 5 | 1 4 . . . Parts Field Recycled . | . . . . . Retrieved Matter . | . . . . . Parts Self-Destructed . | . . . . . Prevented . | . . . . . Parts Restored . | . . . . . Kills | -11 -10 -10 -10 -9 ------- Run | Yrd Mat Min Exi Min Combat Hostiles Destroyed 21 | . 14 5 . 2 Guns 17 | . 14 1 . 2 Cannons 4 | . . 4 . . Classes Destroyed 6 | 2 4 . . . Tunneler 2 | 1 . . . 1 Hauler 2 | . 2 . . . Recycler 6 | 1 3 2 . . Watcher 1 | . 1 . . . Swarmer 4 | . 3 1 . . Grunt 17 | . 11 4 . 2 Best Kill Streak 4 | 2 3 4 . 2 Combat Bots Only 3 | . 3 2 . 2 Max Kills in Single Turn 1 | 1 1 1 . 1 Gunslinging . | . . . . . Exploded . | . . . . . Melee . | . . . . . Uniques/NPCs Destroyed . | . . . . . Combat | -11 -10 -10 -10 -9 -------- Run | Yrd Mat Min Exi Min Hostile Shots Fired 139 | . 67 57 . 15 Missed 31 | . 16 9 . 6 Hits 108 | . 51 48 . 9 Projectile 108 | . 51 48 . 9 Critical Strikes 2 | . 1 1 . . Damage Taken 1355 | . 630 607 . 118 Core 253 | . 85 115 . 53 Absorbed by Shields . | . . . . . Regen/Repaired (Parts) 67 | . 67 . . . Core Remaining (%) 100 | 100 . . . . Volleys Fired 117 | 5 74 28 . 10 Largest 2 | 2 2 2 . 2 Hottest 85 | 40 70 80 . 85 Shots Fired 236 | 10 148 58 . 20 Gun 216 | 10 148 38 . 20 Cannon 20 | . . 20 . . Launcher . | . . . . . Special . | . . . . . Kinetic 185 | 10 136 29 . 10 Thermal 51 | . 12 29 . 10 Explosive . | . . . . . Electromagnetic . | . . . . . Robot Hit Streak 15 | 3 13 6 . 15 Robot Miss Streak 6 | 1 4 6 . 1 Penetration Max . | . . . . . Secondary Targets 1 | . 1 . . . Max Gunslinging Chain 1 | . 1 . . . Shots Hit Robots 155 | 7 101 30 . 17 Core Hits 66 | 4 44 13 . 5 Critical Kills 1 | 1 . . . . Critical Parts Destroyed . | . . . . . Critical Strikes 2 | 1 1 . . . Burn 1 | . 1 . . . Destroy 1 | 1 . . . . Melee Attacks . | . . . . . Impact . | . . . . . Slashing . | . . . . . Piercing . | . . . . . Sneak Attacks . | . . . . . Combat Hostiles . | . . . . . Follow-up Attacks . | . . . . . Damage Inflicted 1697 | 50 952 453 . 242 Guns 1518 | 50 947 279 . 242 Cannons 163 | . . 163 . . Explosions . | . . . . . Melee . | . . . . . Ramming 16 | . 5 11 . . Kinetic 1246 | 50 873 223 . 100 Thermal 435 | . 74 219 . 142 Explosive . | . . . . . Electromagnetic . | . . . . . Impact . | . . . . . Slashing . | . . . . . Piercing . | . . . . . Highest Corruption 2 | . 2 2 2 2 Average Corruption 1 | . 1 2 2 2 Corruption Purged . | . . . . . Corruption Blocked . | . . . . . Effects 19 | . 2 12 3 2 Message Errors 5 | . . 2 1 2 Matter Fused 6 | . . 5 1 . Heat Flow Errors 2 | . 1 1 . . Parts Rejected 1 | . 1 . . . Data Loss (minor) 2 | . . 1 1 . Data Loss (major) 1 | . . 1 . . Misfires 2 | . . 2 . . Overload Shots . | . . . . . Overflow Damage . | . . . . . Projectiles . | . . . . . Explosions . | . . . . . Melee . | . . . . . Knockbacks . | . . . . . Impact . | . . . . . Kinetic . | . . . . . Secondary . | . . . . . Self-Inflicted Damage 2 | . 2 . . . Shots . | . . . . . Rammed 7 | . 1 6 . . Targets Rammed 7 | . 1 6 . . Kicked . | . . . . . Crushed . | . . . . . Highest Temperature 312 | . 105 267 . 312 Average Temperature 78 | . 14 103 . 151 Received Heat Transfer 726 | . 318 339 . 69 Effects 3 | . . 3 . . Interference 3 | . . 3 . . Siege Activations . | . . . . . Martial Activations . | . . . . . Shielding Activations . | . . . . . Robots Disrupted . | . . . . . Combat Hostiles . | . . . . . Robots Corrupted . | . . . . . Combat Hostiles . | . . . . . Parts Fried . | . . . . . Impact Corruptions . | . . . . . Robots Melted . | . . . . . Combat Hostiles . | . . . . . Parts Melted 1 | . . . . 1 Heat Transferred 1063 | . 272 458 . 333 Parts Sabotaged . | . . . . . Parts Stolen . | . . . . . Parts Stripped . | . . . . . Power Chain Reactions . | . . . . . Alert | -11 -10 -10 -10 -9 ------- Run | Yrd Mat Min Exi Min Maximum Alert Level . | . . . . . Low Security (%) 100 | 100 100 100 . 100 Level 1 . | . . . . . Level 2 . | . . . . . Level 3 . | . . . . . Level 4 . | . . . . . Level 5 . | . . . . . High Security . | . . . . . Max Security . | . . . . . Peak Influence 108 | 5 108 52 . 50 Initial 3 | . 3 . . . Average 21 | 2 30 10 . 14 Influence Increases 647 | 10 422 160 . 55 Destroy 0b10 Robot/C 420 | . 280 100 . 40 Destroy 0b10 Robot/NC 55 | 10 30 10 . 5 Destroy Leader 116 | . 86 20 . 10 Successful Hack 26 | . 26 . . . Lose Combat Pursuer 30 | . . 30 . . Influence Decreases 647 | 5 427 148 12 55 Entered New Map 14 | . 2 . 12 . Time Decay 515 | 5 317 138 . 55 Lost Part 50 | . 40 10 . . Purge Threat 68 | . 68 . . . Squads Dispatched 4 | . 4 . . . Investigation 2 | . 2 . . . Extermination . | . . . . . Reinforcement 2 | . 2 . . . Assault . | . . . . . Garrison . | . . . . . Intercept . | . . . . . Searches Triggered . | . . . . . Construction Impeded . | . . . . . Haulers Reinforced . | . . . . . Active Scanning Responses . | . . . . . Cargo Convoy Interrupts . | . . . . . Stealth | -11 -10 -10 -10 -9 --------- Run | Yrd Mat Min Exi Min Distress Signals . | . . . . . Communications Jammed . | . . . . . Distress Signals . | . . . . . Times Spotted 38 | . 27 7 . 4 Peak Tracking Total 6 | . 6 3 . 2 Tactical Retreats 1 | . . 1 . . Traps | -11 -10 -10 -10 -9 ------- Run | Yrd Mat Min Exi Min Traps Triggered 4 | . 4 . . . Indirectly . | . . . . . Trap Hack Attempts . | . . . . . Triggered . | . . . . . Disarmed . | . . . . . Reprogrammed . | . . . . . Reused . | . . . . . Traps Extracted . | . . . . . Installed . | . . . . . Triggered . | . . . . . Machines | -11 -10 -10 -10 -9 ---------- Run | Yrd Mat Min Exi Min Machines Disabled . | . . . . . Max in Single Turn . | . . . . . Machines Repaired . | . . . . . Machines Dismantled . | . . . . . Machines Sabotaged . | . . . . . Overloaded Fab Kills . | . . . . . Hacking | -11 -10 -10 -10 -9 --------- Run | Yrd Mat Min Exi Min Machines Accessed 10 | . 7 1 2 . Terminals 7 | . 6 1 . . Fabricators . | . . . . . Repair Stations 1 | . 1 . . . Recycling Units . | . . . . . Scanalyzers . | . . . . . Garrison Access . | . . . . . Total Hacks 27 | . 24 1 2 . Successful 15 | . 13 . 2 . Failed 11 | . 10 1 . . Catastrophic 1 | . 1 . . . Database Lockouts 1 | . 1 . . . Manual 21 | . 20 . 1 . Terminals 22 | . 21 1 . . Fabricators . | . . . . . Repair Stations 3 | . 3 . . . Recycling Units . | . . . . . Scanalyzers . | . . . . . Garrison Access . | . . . . . Terminal Hacks 7 | . 5 . 2 . Record 1 | . . . 1 . Robot Analysis 2 | . 2 . . . Prototype ID Bank 2 | . 2 . . . Unreport Threat 1 | . 1 . . . Proto ID Catalog 1 | . . . 1 . Fabricator Hacks . | . . . . . Repair Station Hacks 3 | . 3 . . . Scan Component 2 | . 2 . . . Repair 1 | . 1 . . . Recycling Unit Hacks . | . . . . . Scanalyzer . | . . . . . Garrison Access Hacks . | . . . . . Unauthorized Hacks 5 | . 5 . . . Terminals 5 | . 5 . . . Botnet 5 | . 5 . . . Fabricators . | . . . . . Repair Stations . | . . . . . Recycling Units . | . . . . . Scanalyzers . | . . . . . Garrison Access . | . . . . . Data Cores Recovered . | . . . . . Used . | . . . . . Hacking Detections 8 | . 7 1 . . Full Trace Events . | . . . . . Feedback Events . | . . . . . Feedback Blocked . | . . . . . Robot Schematics Acquired . | . . . . . Robots Built . | . . . . . Authchips . | . . . . . Time . | . . . . . Total Robot Build Rating . | . . . . . Part Schematics Acquired . | . . . . . Parts Built . | . . . . . Authchips . | . . . . . Time . | . . . . . Total Part Build Rating . | . . . . . Part Studies Acquired . | . . . . . Parts Repaired 1 | . 1 . . . Time 26 | . 26 . . . Parts Recycled . | . . . . . Recycled Matter . | . . . . . Retrieved Matter . | . . . . . Retrieved Components . | . . . . . Parts Scanalyzed . | . . . . . Part Schematics Acquired . | . . . . . Parts Damaged . | . . . . . Bothacking | -11 -10 -10 -10 -9 ------------ Run | Yrd Mat Min Exi Min Used RIF Installer . | . . . . . Robots Hacked . | . . . . . Non-combat . | . . . . . Combat . | . . . . . Robot Hacks Applied . | . . . . . Relay Couplers Released . | . . . . . Fabnet Peak Effective % . | . . . . . Robots Rewired . | . . . . . Allies Hacked . | . . . . . Hacks Repelled . | . . . . . Allies | -11 -10 -10 -10 -9 -------- Run | Yrd Mat Min Exi Min Total Allies . | . . . . . Largest Group . | . . . . . Highest-Rated Group . | . . . . . Highest-Rated Ally . | . . . . . Total Orders . | . . . . . Ally Attacks . | . . . . . Total Damage . | . . . . . Kills . | . . . . . Allies Corrupted . | . . . . . Allies Melted . | . . . . . Intel | -11 -10 -10 -10 -9 ------- Run | Yrd Mat Min Exi Min Active Infowar (turns) 322 | 4 318 . . . Seismic 322 | 4 318 . . . Robot Analysis Total 2 | . 2 . . . Derelict Logs Recovered . | . . . . . Drone Launches . | . . . . . Drone Recoveries . | . . . . . Exploration | -11 -10 -10 -10 -9 ------------- Run | Yrd Mat Min Exi Min Turns Passed 2268 | 32 1043 667 299 227 Spaces Moved 1320 | 14 678 271 223 134 Core . | . . . . . Treads 197 | . 2 194 1 . Legs . | . . . . . Wheels 1123 | 14 676 77 222 134 Hover . | . . . . . Flight . | . . . . . Fastest Speed 95 | 95 95 115 115 145 Average Speed 135 | 95 109 204 129 145 Slowest Speed 240 | 95 240 240 240 145 Overloaded Moves . | . . . . . Propulsion Burnouts . | . . . . . Robots Hopped . | . . . . . Potential Cave-ins . | . . . . . Cave-ins Triggered . | . . . . . Exploration Rate (%) 49 | 2 97 49 60 37 Regions Visited 4 Branch Regions 3 Pre-discovered Areas 1 | . . . 1 . Known Exits Taken . | . . . . . Unknown Exits Taken 4 | 1 1 1 1 . Scrap Searched 2 | . . 1 . 1 Spaces Dug . | . . . . . Terrain Destroyed . | . . . . . Melee . | . . . . . Projectile . | . . . . . AOE . | . . . . . Terrain Rammed . | . . . . . Walls Destroyed . | . . . . . Machines Disabled . | . . . . . Actions | -11 -10 -10 -10 -9 --------- Run | Yrd Mat Min Exi Min Total 1578 | 26 852 319 232 149 Wait 65 | . 64 . . 1 Move 1316 | 13 677 270 222 134 Hop . | . . . . . Pick Up 22 | 1 14 2 4 1 Fast Attach 8 | 1 4 2 1 . Attach 10 | 2 4 3 . 1 Detach 6 | 2 1 1 1 1 Swap 13 | . 8 3 2 . Drop 14 | 2 5 4 2 1 Fire 117 | 5 74 28 . 10 Melee . | . . . . . Ram 1 | . 1 . . . Kick . | . . . . . Crush 6 | . . 6 . . Escape Stasis . | . . . . . Rewire . | . . . . . Trap . | . . . . . Miscellaneous . | . . . . . Route ------- -11/Scrapyard -10/Materials (discovered 4 exits: [*Mat x3] / *Min) -10/Mines (discovered 2 exits: *Exi / [*Sub]) -10/Exiles -9/Mines History --------- Turn | Location | Event 13 | -11/Scrapyard | Discovered new exit (range 3) 33 | -11/Scrapyard | Entered Materials 317 | -10/Materials | Build established: Mutant 483 | -10/Materials | Repaired Lgt. Treads 494 | -10/Materials | Discovered new exit (range 16) 665 | -10/Materials | Lost 3 parts (1u2w) 691 | -10/Materials | Discovered new exit (range 16) 825 | -10/Materials | Central database locked down 828 | -10/Materials | Discovered new exit (range 16) 907 | -10/Materials | Discovered new exit (range 7) 1076 | -10/Materials | Entered Mines 1142 | -10/Mines | Core integrity fell below 50% 1199 | -10/Mines | Lost 4 parts (1p1n2w) 1230 | -10/Mines | Discovered new exit (range 6) 1737 | -10/Mines | Deemed a non-threat by the Exiles lab entrance 1738 | -10/Mines | Discovered new exit (range 5) 1743 | -10/Mines | Entered Exiles 1774 | -10/Exiles | Met 8R-AWN 1793 | -10/Exiles | Met EX-HEX 1827 | -10/Exiles | Met EX-BIN 1843 | -10/Exiles | Aligned with FarCom system 1845 | -10/Exiles | Given EX-Vault access code 1872 | -10/Exiles | Opened EX-Vault 1882 | -10/Exiles | Found Deploy-a-Sentry 1887 | -10/Exiles | Found Deploy-a-Sentry 1889 | -10/Exiles | Found Deploy-a-Sentry 1928 | -10/Exiles | Warned to stay clear of 0b10 Research branches 1956 | -10/Exiles | Build established: Scavenger-Mutant 1972 | -10/Exiles | Met EX-DEC 1981 | -10/Exiles | Learned location of Zion (-6) 2030 | -10/Exiles | Discovered new exit (range 10) 2042 | -10/Exiles | Left Exiles lab with Deploy-a-Sentry 2042 | -10/Exiles | Entered Mines 2073 | -9/Mines | Core integrity fell below 20% 2124 | -9/Mines | Received a Rocket Launcher from a helpful Derelict 2269 | -9/Mines | Destroyed by G-34 Mercenary with Small Laser Last Messages --------------- think you need a mining laser when you travel the depths." 02120_ AG-TAX(g): "You know what I say? NO!" 02120_ R-06 Scavenger collects Wheel. 02121_ AG-TAX(g): "Everyone knows a good old rocket launcher goes a long way." 02122_ AG-TAX(g): "Need to get rid of a swarm? Done. Need a big hole in the wall? Done." 02123_ AG-TAX(g): "Need a small hole in the wall? Leave that to the mining laser wimps, I say!" 02124_ AG-TAX(g): "Would you like a rocket launcher? I know I would if I were you, so I'm going to lend you mine." 02124_ AG-TAX(g) slips back into the shadows. 02130_ Acquired Rocket Launcher. 02137_ Dropped Grenade Launcher. 02148_ R-06 Scavenger collects Grenade Launcher. 02194_ C|EY,IOJIBIJOWU%SQL6RB 02195_ K-01 Serf collects debris. Map ----- +----------------------------------------------------+ | ?????????????????????????????????????????????????? | | ?????????????????????????????????????????????????? | | ?????????????????????????????????????????????????? | | ?????????????????????????????????????????????????? | | ####?????????????????????????????????????????????? | | ##????????????????????????????????????????????? | | #????????????????????????????????????????????? | | #????????????????????????????????????????????? | | ##????????????????s?s??s?????????????????????? | | #???????????????????????????????????????????? | | #???????????????????????????????????????????? | | ##???????????????????????????????????????????? | | #????????????????????? ?????????????????????? | | # ##???????????????????? ?????????????????????? | | ## ##??????????????????? """??????????????????? | | ?## #???????????????????? """??????????????????? | | ??# #???????????????????? ??????????????????? | | ?## ##????????????#######?# #??????????????????? | | ## ##???????????## ### ##?????????????????? | | #??????????## ## ??????????????????? | | #????????### ## #??????????????????? | | ##???????## """ ## #??????????????????? | | ##???????## """ ## ###????????????????? | | ##???????## """ # ##???????????????? | | ##????????# ##??????????????? | | ##????????# @ ##?????????????? | | ##???????# ## ### #?????????????? | | #???????## ########?## #?????????????? | | #????????# #?????????## #????????????? | | ########?# #??????????##### #???????????? | | ### #??????????????# g #??????????? | | ## #??????????????# g #?????????? | | #?????????????? #?????????? | | ##%##?????????????? ## #????????? | | ### ## ### #??????????????? ##?# #????????? | | ??##########?# #??????????????? #??? #???????? | | ?????????????# #??????????????? ##???? ??????? | | ?????????????# #??????????????? #??????? ??????? | | ?????????????# #???????????????#????????? ?????? | | ?????????????# #????????????????????????? ???????? | | ?????????????# #?????????????????????????????????? | | ?????????????#%#?????????????????????????????????? | | ?????????????#/######????????????????????????????? | | ?????????????#! ! #????????????????????????????? | | ?????? !#### #????????????????????????????? | | ?? ##########??# #????????????????????????????? | | ??????????????????# #????????????????????????????? | | ??????????????????# #????????????????????????????? | | ??????????????????# #????????????????????????????? | | ?????????????###### #????????????????????????????? | +----------------------------------------------------+ Best States ------------- Heat Dissipation 35 Energy Generation 14 Energy Capacity 250 Matter Stores 300 Matter Capacity 300 Sight Range 16 Terrain Scan Density 10 Armor Coverage 150 Evasion (%) 41 Targeting Accuracy 6 Recoil Reduction 1 Item Schematics ----------------- None Robot Schematics ------------------ None Fabricated ------------ Nothing Repaired ---------- Lgt. Treads | 52% | -10/Materials Studied --------- None Alien Tech Used ----------------- None Achievements -------------- None Challenges ------------ None Game ------ Seed GravitonWeldingBuckler Manual? 0 Play Time 00:17:16 Cumulative 153.1 hours Start 2026.04.16 @ 11:40:31 End 2026.04.16 @ 11:59:57 Sessions 1 Manual Loads 0 Difficulty Rogue Special Mode None Game No. 102 Rogue 102 Adventurer 0 Explorer 0 Win Type - Total 5 Types 3/0/1/1/0/0/0/0/0/0 Lore% 62 Gallery% 53 Achievement% 48 Wizard Run 0 Options --------- Layout 2 ASCII 0 Keyboard 1 Movement Arrows Keybinds 0 Fullscreen 2 Font 24/Terminus Map View 50x44 Zoom Use 0% Tactical HUD 1 Map Filters NONE Filters NONE Steam 1 RUN: 2821b983-ad52-4532-b809-d6a14124a134